Workbook

Sheet Sheet1
E1: Low | F1: High
A2: Beta | B2: 3960 | D2: Vth | E2: =C11 -> 1.110371816 | F2: =C41 -> 0.4045208614
A3: R | B3: 47000 | D3: Rth | E3: =D11 -> 28506.19694 | F3: =D41 -> 16742.01436
A4: Vcc | B4: 12 | D4: R3 | E4: 38644.98138 | F4: 38644.98138
A5: R1 | B5: 200000 | D5: Vref | E5: =H5 -> 2.549295317 | F5: =H5 -> 2.549295317 | H5: 2.549295317
A6: R2 | B6: 10000 | D6: Vout (target) | E6: 4.5 | F6: 7.5
A7: R3 | B7: 38644.98138 | D7: G (Rf/Rth) | E7: =(E5-E6)/(E2-E5) -> 1.355669487 | F7: =(F5-F6)/(F2-F5) -> 2.308263543 | H7: =ABS(E7-F7) -> 0.9525940563
D8: DO NOT CHANGE THE ABOVE CELLS OR FORMULAS
A10: Temp | B10: Rtherm | C10: Vdiv | D10: Rthev | E10: Vout
A11: 45 | B11: =B$3*EXP((B$2*(1/($A$11+273.15)-1/(25+273.15)))) -> 20393.1998 | C11: =(B$4*20393.1997968567)/(20393.1997968567 + B$5) -> 1.110371816 | D11: =(1/((1/B$5)+(1/20393.1997968567)))+B$6 -> 28506.19694 | E11: =(-C11*(B$7/D11))+(E$5*(1+(B$7/D11))) -> 4.5
A12: 46 | B12: =B$3*EXP((B$2*(1/($A$12+273.15)-1/(25+273.15)))) -> 19613.16767 | C12: =(B$4*19613.1676689911)/(19613.1676689911 + B$5) -> 1.071693535 | D12: =(1/((1/B$5)+(1/19613.1676689911)))+B$6 -> 27861.55892 | E12: =(-C12*(B$7/D12))+(E$5*(1+(B$7/D12))) -> 4.598781976
A13: 47 | B13: =B$3*EXP((B$2*(1/($A$13+273.15)-1/(25+273.15)))) -> 18867.56777 | C13: =(B$4*18867.5677682289)/(18867.5677682289 + B$5) -> 1.034464885 | D13: =(1/((1/B$5)+(1/18867.5677682289)))+B$6 -> 27241.08141 | E13: =(-C13*(B$7/D13))+(E$5*(1+(B$7/D13))) -> 4.698277325
A14: 48 | B14: =B$3*EXP((B$2*(1/($A$14+273.15)-1/(25+273.15)))) -> 18154.69337 | C14: =(B$4*18154.6933747681)/(18154.6933747681 + B$5) -> 0.9986322876 | D14: =(1/((1/B$5)+(1/18154.6933747681)))+B$6 -> 26643.87146 | E14: =(-C14*(B$7/D14))+(E$5*(1+(B$7/D14))) -> 4.798418308
A15: 49 | B15: =B$3*EXP((B$2*(1/($A$15+273.15)-1/(25+273.15)))) -> 17472.93108 | C15: =(B$4*17472.9310841659)/(17472.9310841659 + B$5) -> 0.9641437763 | D15: =(1/((1/B$5)+(1/17472.9310841659)))+B$6 -> 26069.06294 | E15: =(-C15*(B$7/D15))+(E$5*(1+(B$7/D15))) -> 4.899136272
A16: 50 | B16: =B$3*EXP((B$2*(1/($A$16+273.15)-1/(25+273.15)))) -> 16820.75525 | C16: =(B$4*16820.7552509912)/(16820.7552509912 + B$5) -> 0.9309489895 | D16: =(1/((1/B$5)+(1/16820.7552509912)))+B$6 -> 25515.81649 | E16: =(-C16*(B$7/D16))+(E$5*(1+(B$7/D16))) -> 5.000361842
A17: 51 | B17: =B$3*EXP((B$2*(1/($A$17+273.15)-1/(25+273.15)))) -> 16196.72279 | C17: =(B$4*16196.7227893128)/(16196.7227893128 + B$5) -> 0.898999166 | D17: =(1/((1/B$5)+(1/16196.7227893128)))+B$6 -> 24983.31943 | E17: =(-C17*(B$7/D17))+(E$5*(1+(B$7/D17))) -> 5.102025116
A18: 52 | B18: =B$3*EXP((B$2*(1/($A$18+273.15)-1/(25+273.15)))) -> 15599.46831 | C18: =(B$4*15599.4683054936)/(15599.4683054936 + B$5) -> 0.8682471304 | D18: =(1/((1/B$5)+(1/15599.4683054936)))+B$6 -> 24470.78551 | E18: =(-C18*(B$7/D18))+(E$5*(1+(B$7/D18))) -> 5.204055861
A19: 53 | B19: =B$3*EXP((B$2*(1/($A$19+273.15)-1/(25+273.15)))) -> 15027.69954 | C19: =(B$4*15027.6995405569)/(15027.6995405569 + B$5) -> 0.838647276 | D19: =(1/((1/B$5)+(1/15027.6995405569)))+B$6 -> 23977.4546 | E19: =(-C19*(B$7/D19))+(E$5*(1+(B$7/D19))) -> 5.306383706
A20: 54 | B20: =B$3*EXP((B$2*(1/($A$20+273.15)-1/(25+273.15)))) -> 14480.1931 | C20: =(B$4*14480.1931010422)/(14480.1931010422 + B$5) -> 0.8101555426 | D20: =(1/((1/B$5)+(1/14480.1931010422)))+B$6 -> 23502.59238 | E20: =(-C20*(B$7/D20))+(E$5*(1+(B$7/D20))) -> 5.408938334
A21: 55 | B21: =B$3*EXP((B$2*(1/($A$21+273.15)-1/(25+273.15)))) -> 13955.79046 | C21: =(B$4*13955.7904588002)/(13955.7904588002 + B$5) -> 0.7827293907 | D21: =(1/((1/B$5)+(1/13955.7904588002)))+B$6 -> 23045.48985 | E21: =(-C21*(B$7/D21))+(E$5*(1+(B$7/D21))) -> 5.511649676
A22: 56 | B22: =B$3*EXP((B$2*(1/($A$22+273.15)-1/(25+273.15)))) -> 13453.3942 | C22: =(B$4*13453.3942015815)/(13453.3942015815 + B$5) -> 0.7563277737 | D22: =(1/((1/B$5)+(1/13453.3942015815)))+B$6 -> 22605.46289 | E22: =(-C22*(B$7/D22))+(E$5*(1+(B$7/D22))) -> 5.614448091
A23: 57 | B23: =B$3*EXP((B$2*(1/($A$23+273.15)-1/(25+273.15)))) -> 12971.96452 | C23: =(B$4*12971.9645175803)/(12971.9645175803 + B$5) -> 0.7309111064 | D23: =(1/((1/B$5)+(1/12971.9645175803)))+B$6 -> 22181.85177 | E23: =(-C23*(B$7/D23))+(E$5*(1+(B$7/D23))) -> 5.717264549
A24: 58 | B24: =B$3*EXP((B$2*(1/($A$24+273.15)-1/(25+273.15)))) -> 12510.5159 | C24: =(B$4*12510.5158982958)/(12510.5158982958 + B$5) -> 0.7064412325 | D24: =(1/((1/B$5)+(1/12510.5158982958)))+B$6 -> 21774.02054 | E24: =(-C24*(B$7/D24))+(E$5*(1+(B$7/D24))) -> 5.820030807
A25: 59 | B25: =B$3*EXP((B$2*(1/($A$25+273.15)-1/(25+273.15)))) -> 12068.11405 | C25: =(B$4*12068.114045187)/(12068.114045187 + B$5) -> 0.6828813902 | D25: =(1/((1/B$5)+(1/12068.114045187)))+B$6 -> 21381.3565 | E25: =(-C25*(B$7/D25))+(E$5*(1+(B$7/D25))) -> 5.922679574
A26: 60 | B26: =B$3*EXP((B$2*(1/($A$26+273.15)-1/(25+273.15)))) -> 11643.87297 | C26: =(B$4*11643.8729666255)/(11643.8729666255 + B$5) -> 0.660196176 | D26: =(1/((1/B$5)+(1/11643.8729666255)))+B$6 -> 21003.2696 | E26: =(-C26*(B$7/D26))+(E$5*(1+(B$7/D26))) -> 6.025144673
A27: 61 | B27: =B$3*EXP((B$2*(1/($A$27+273.15)-1/(25+273.15)))) -> 11236.95225 | C27: =(B$4*11236.9522526009)/(11236.9522526009 + B$5) -> 0.6383515081 | D27: =(1/((1/B$5)+(1/11236.9522526009)))+B$6 -> 20639.1918 | E27: =(-C27*(B$7/D27))+(E$5*(1+(B$7/D27))) -> 6.127361193
A28: 62 | B28: =B$3*EXP((B$2*(1/($A$28+273.15)-1/(25+273.15)))) -> 10846.55452 | C28: =(B$4*10846.5545155169)/(10846.5545155169 + B$5) -> 0.6173145892 | D28: =(1/((1/B$5)+(1/10846.5545155169)))+B$6 -> 20288.57649 | E28: =(-C28*(B$7/D28))+(E$5*(1+(B$7/D28))) -> 6.229265633
A29: 63 | B29: =B$3*EXP((B$2*(1/($A$29+273.15)-1/(25+273.15)))) -> 10471.92299 | C29: =(B$4*10471.9229862284)/(10471.9229862284 + B$5) -> 0.5970538685 | D29: =(1/((1/B$5)+(1/10471.9229862284)))+B$6 -> 19950.89781 | E29: =(-C29*(B$7/D29))+(E$5*(1+(B$7/D29))) -> 6.330796036
A30: 64 | B30: =B$3*EXP((B$2*(1/($A$30+273.15)-1/(25+273.15)))) -> 10112.33926 | C30: =(B$4*10112.3392552245)/(10112.3392552245 + B$5) -> 0.5775390036 | D30: =(1/((1/B$5)+(1/10112.3392552245)))+B$6 -> 19625.65006 | E30: =(-C30*(B$7/D30))+(E$5*(1+(B$7/D30))) -> 6.43189211
A31: 65 | B31: =B$3*EXP((B$2*(1/($A$31+273.15)-1/(25+273.15)))) -> 9767.12115 | C31: =(B$4*9767.12114956526)/(9767.12114956526 + B$5) -> 0.5587408225 | D31: =(1/((1/B$5)+(1/9767.12114956526)))+B$6 -> 19312.34704 | E31: =(-C31*(B$7/D31))+(E$5*(1+(B$7/D31))) -> 6.532495349
A32: 66 | B32: =B$3*EXP((B$2*(1/($A$32+273.15)-1/(25+273.15)))) -> 9435.620737 | C32: =(B$4*9435.62073682118)/(9435.62073682118 + B$5) -> 0.5406312854 | D32: =(1/((1/B$5)+(1/9435.62073682118)))+B$6 -> 19010.52142 | E32: =(-C32*(B$7/D32))+(E$5*(1+(B$7/D32))) -> 6.632549129
A33: 67 | B33: =B$3*EXP((B$2*(1/($A$33+273.15)-1/(25+273.15)))) -> 9117.222448 | C33: =(B$4*9117.2224478722)/(9117.2224478722 + B$5) -> 0.5231834475 | D33: =(1/((1/B$5)+(1/9117.2224478722)))+B$6 -> 18719.72413 | E33: =(-C33*(B$7/D33))+(E$5*(1+(B$7/D33))) -> 6.731998808
A34: 68 | B34: =B$3*EXP((B$2*(1/($A$34+273.15)-1/(25+273.15)))) -> 8811.341311 | C34: =(B$4*8811.34131097366)/(8811.34131097366 + B$5) -> 0.5063714215 | D34: =(1/((1/B$5)+(1/8811.34131097366)))+B$6 -> 18439.52369 | E34: =(-C34*(B$7/D34))+(E$5*(1+(B$7/D34))) -> 6.830791802
A35: 69 | B35: =B$3*EXP((B$2*(1/($A$35+273.15)-1/(25+273.15)))) -> 8517.42129 | C35: =(B$4*8517.42129001691)/(8517.42129001691 + B$5) -> 0.4901703409 | D35: =(1/((1/B$5)+(1/8517.42129001691)))+B$6 -> 18169.50568 | E35: =(-C35*(B$7/D35))+(E$5*(1+(B$7/D35))) -> 6.928877664
A36: 70 | B36: =B$3*EXP((B$2*(1/($A$36+273.15)-1/(25+273.15)))) -> 8234.93372 | C36: =(B$4*8234.93372038956)/(8234.93372038956 + B$5) -> 0.4745563239 | D36: =(1/((1/B$5)+(1/8234.93372038956)))+B$6 -> 17909.27206 | E36: =(-C36*(B$7/D36))+(E$5*(1+(B$7/D36))) -> 7.026208139
A37: 71 | B37: =B$3*EXP((B$2*(1/($A$37+273.15)-1/(25+273.15)))) -> 7963.375836 | C37: =(B$4*7963.37583628622)/(7963.37583628622 + B$5) -> 0.4595064379 | D37: =(1/((1/B$5)+(1/7963.37583628622)))+B$6 -> 17658.44063 | E37: =(-C37*(B$7/D37))+(E$5*(1+(B$7/D37))) -> 7.122737219
A38: 72 | B38: =B$3*EXP((B$2*(1/($A$38+273.15)-1/(25+273.15)))) -> 7702.269384 | C38: =(B$4*7702.26938373271)/(7702.26938373271 + B$5) -> 0.4449986651 | D38: =(1/((1/B$5)+(1/7702.26938373271)))+B$6 -> 17416.64442 | E38: =(-C38*(B$7/D38))+(E$5*(1+(B$7/D38))) -> 7.218421181
A39: 73 | B39: =B$3*EXP((B$2*(1/($A$39+273.15)-1/(25+273.15)))) -> 7451.159314 | C39: =(B$4*7451.15931397096)/(7451.15931397096 + B$5) -> 0.4310118684 | D39: =(1/((1/B$5)+(1/7451.15931397096)))+B$6 -> 17183.53114 | E39: =(-C39*(B$7/D39))+(E$5*(1+(B$7/D39))) -> 7.313218619
A40: 74 | B40: =B$3*EXP((B$2*(1/($A$40+273.15)-1/(25+273.15)))) -> 7209.612552 | C40: =(B$4*7209.6125522078)/(7209.6125522078 + B$5) -> 0.4175257584 | D40: =(1/((1/B$5)+(1/7209.6125522078)))+B$6 -> 16958.76264 | E40: =(-C40*(B$7/D40))+(E$5*(1+(B$7/D40))) -> 7.407090465
A41: 75 | B41: =B$3*EXP((B$2*(1/($A$41+273.15)-1/(25+273.15)))) -> 6977.216837 | C41: =(B$4*6977.2168370624)/(6977.2168370624 + B$5) -> 0.4045208614 | D41: =(1/((1/B$5)+(1/6977.2168370624)))+B$6 -> 16742.01436 | E41: =(-C41*(B$7/D41))+(E$5*(1+(B$7/D41))) -> 7.5

Sheet Sheet2

Sheet Sheet3
